bitfinex-derivatives/quotes_ETHF0:USTF0_20241020
["timestamp","ask_amount","ask_price","bid_price","bid_amount"]
[1729457824634,5.46028687,2718.9,2718.4,0.78]
[1729457824831,1.44788687,2718.8,2718.7,0.36787]
[1729457825134,4.38025,2718.9,2718.7,0.36787]
[1729457825135,5.82813687,2718.9,2718.7,0.36787]
[1729457825338,0.96360549,2718.8,2718.7,0.36787]
[1729457826139,1.33146549,2718.8,2718.7,0.36787]
[1729457826335,0.96360549,2718.8,2718.7,0.36787]
[1729457826734,4.65568687,2718.9,2718.7,3.6784]
[1729457826939,0.36782,2719.2,2718.9,0.36785]
[1729457827136,0.36781,2719.2,2719.0,0.36782]
[1729457827336,1.54832,2719.1,2718.8,0.78]
[1729457827638,0.36786,2718.8,2718.6,0.36788]
[1729457827840,0.3894,2718.7,2718.6,0.36789]
[1729457828136,0.36789,2718.6,2718.2,1.32350468]
[1729457828336,0.36791,2718.5,2718.4,0.36791]
[1729457828541,4.3668,2718.6,2718.4,0.36791]
[1729457828738,4.3668,2718.6,2718.5,0.3679]
[1729457829837,3.9989,2718.6,2718.5,0.3679]
[1729457830446,3.2078,2718.6,2718.5,4.0463]
[1729457831441,1.44788687,2719.0,2718.5,4.0463]
[1729457831745,1.928462,2719.1,2719.0,0.36783]
[1729457831746,1.81571687,2719.1,2719.0,0.36783]
[1729457831938,0.36783,2719.1,2719.0,0.36783]
[1729457833445,4.4136,2719.2,2718.6,0.78]
[1729457833640,4.4136,2719.2,2718.2,4.63949735]
[1729457833641,0.36785,2718.9,2718.8,0.36785]
[1729457834241,0.36787,2718.8,2718.7,0.36787]
[1729457834443,1.44788687,2719.1,2718.5,0.78]
[1729457834635,0.7801,2718.7,2718.6,0.36789]
[1729457835033,1.1987,2718.7,2718.6,0.36789]
[1729457837044,1.44788687,2719.3,2718.6,3.6784]
[1729457837344,0.3853,2719.0,2718.9,0.36785]
[1729457841139,0.3853,2719.0,2718.9,4.04545]
[1729457841349,4.3854,2719.3,2719.2,0.36781]
[1729457841543,4.3854,2719.3,2718.8,1.69965]
[1729457841544,0.36781,2719.2,2719.1,0.36781]
[1729457842539,0.36781,2719.2,2719.1,0.36782]
[1729457842733,0.78451,2719.2,2719.1,0.36782]
[1729457843141,0.78451,2719.2,2719.0,0.36783]
[1729457843142,0.36783,2719.1,2719.0,0.36783]
[1729457843443,0.78451,2719.2,2719.1,0.36782]
[1729457843643,0.36783,2719.1,2719.0,0.36783]
[1729457844240,0.4167,2719.2,2719.1,0.36782]
[1729457844241,0.78452,2719.2,2719.1,0.36782]
[1729457849150,0.36782,2719.1,2719.0,0.36782]
[1729457849537,0.4167,2719.2,2718.8,0.78]
[1729457849741,0.78451,2719.2,2719.1,0.36782]
[1729457852354,0.4167,2719.2,2719.1,0.36782]
[1729457854348,0.4167,2719.2,2719.1,4.04542]
[1729457854550,0.4167,2719.2,2719.1,0.36782]
[1729457854945,3.6033,2719.3,2719.2,0.36781]
[1729457855139,3.97109,2719.3,2719.2,0.36781]
[1729457855349,3.6033,2719.3,2719.2,0.36781]
[1729457855749,0.3955,2719.3,2719.2,0.36781]
[1729457858560,0.76329,2719.3,2719.2,0.36781]
[1729457858955,0.3955,2719.3,2719.2,0.36781]
[1729457862363,0.76329,2719.3,2719.2,0.36781]
[1729457862551,0.3955,2719.3,2719.2,4.04541]
[1729457863257,0.76329,2719.3,2719.2,0.36781]
[1729457863559,2.21117687,2719.3,2719.2,0.36781]
[1729457863963,0.36782,2719.1,2719.0,1.15282]
[1729457864363,2.21289687,2719.2,2719.1,0.36782]
[1729457865161,0.3972,2719.2,2719.1,0.36782]
[1729457865361,1.84286349,2719.2,2719.1,0.36782]
[1729457866369,0.3972,2719.2,2719.1,0.36782]
[1729457867564,0.76501,2719.2,2719.1,0.36782]
[1729457867764,0.3972,2719.2,2718.8,0.95557468]
[1729457867966,1.84286349,2719.2,2718.8,0.785]
[1729457868170,0.36783,2719.1,2719.0,0.36782]
[1729457868564,3.2078,2719.1,2718.6,0.95557468]
[1729457868758,3.2078,2719.1,2718.5,0.785]
[1729457868759,0.36787,2718.8,2718.5,0.785]
[1729457868963,0.8053,2718.7,2718.5,0.785]
[1729457869159,0.36791,2718.5,2718.4,0.36791]
[1729457869762,1.8138788,2718.6,2718.5,0.3679]
[1729457869962,1.4459888,2718.6,2718.5,0.3679]
[1729457870169,1.8138788,2718.6,2718.5,0.3679]
[1729457871663,0.36791,2718.5,2718.3,0.36791]
[1729457871971,0.36791,2718.5,2718.4,0.36791]
[1729457872371,1.8138888,2718.6,2718.5,0.3679]
[1729457873473,0.3679,2718.6,2718.5,0.3679]
[1729457874581,1.8134594,2718.6,2718.5,0.3679]
[1729457875082,1.8134594,2718.6,2718.4,0.36791]
[1729457875083,0.3679,2718.5,2718.4,0.36791]
[1729457875282,1.81349492,2718.5,2718.4,0.36791]
[1729457875576,0.36794,2718.3,2718.0,0.36797]
[1729457875769,0.36794,2718.3,2718.1,0.785]
[1729457875770,0.3965,2718.2,2718.1,0.785]
[1729457875971,0.8139,2718.2,2718.1,0.785]
[1729457876167,0.8139,2718.2,2718.1,1.15295]
[1729457876773,0.8139,2718.2,2717.9,3.2078]
[1729457876971,0.36797,2718.1,2718.0,0.36796]
[1729457877178,1.81356492,2718.1,2718.0,0.36796]
[1729457877373,0.36797,2718.1,2718.0,0.36796]
[1729457877779,2.62744492,2718.2,2718.1,0.36795]
[1729457878075,2.62743492,2718.2,2718.1,0.36795]
[1729457878280,1.18184,2718.2,2718.1,0.36795]
[1729457880081,0.8139,2718.2,2718.1,0.36795]
[1729457880774,1.18184,2718.2,2718.1,0.36795]
[1729457881179,0.8139,2718.2,2717.7,0.785]
[1729457881576,1.18185,2718.2,2718.1,0.36795]
[1729457882186,1.18184,2718.2,2718.1,0.36795]
[1729457886289,1.18184,2718.2,2717.8,0.785]
[1729457886290,0.36797,2718.1,2718.0,0.36796]
[1729457886787,1.18185,2718.2,2718.1,0.36795]
[1729457888982,4.65339492,2718.5,2717.8,0.785]
[1729457889187,1.2248,2718.4,2718.3,0.36793]
[1729457889386,1.59271,2718.4,2718.3,0.36793]
[1729457889689,1.2248,2718.4,2718.3,0.36793]
[1729457890091,1.2248,2718.4,2717.8,0.785]
[1729457890389,0.36793,2718.3,2718.2,0.36793]
[1729457890983,1.59272,2718.4,2718.3,0.36793]
[1729457893288,4.80052,2718.4,2718.3,0.36793]
[1729457894091,4.4326,2718.4,2717.9,0.785]
[1729457894297,0.36796,2718.1,2717.9,0.785]
[1729457894487,0.8098,2718.0,2717.9,1.15298]
[1729457894790,0.8098,2718.0,2717.6,3.2078]
[1729457894996,0.406,2717.9,2717.6,3.2078]
[1729457895297,0.36801,2717.7,2717.6,3.2078]
[1729457895597,0.36802,2717.6,2717.5,1.15303]
[1729457895788,0.36802,2717.6,2716.6,4.94837468]
[1729457895789,0.3883,2717.6,2716.6,4.94837468]
[1729457895983,3.2078,2717.3,2717.1,0.36808]
[1729457896190,3.2078,2717.3,2716.8,0.36812]
[1729457896191,0.3902,2717.2,2716.8,0.36812]
[1729457896393,0.3902,2717.2,2716.7,0.785]
[1729457896394,0.75829,2717.2,2717.0,0.3681]
[1729457896590,0.3883,2717.1,2716.6,3.2078]
[1729457896791,0.3975,2717.0,2716.9,0.36811]
[1729457898001,0.76561,2717.0,2716.8,0.36812]
[1729457898382,0.76561,2717.0,2716.4,9.201]
[1729457898383,7.2861,2717.0,2716.4,0.36818]
[1729457898587,0.36817,2716.6,2716.2,3.2078]
[1729457898797,1.2018,2716.5,2716.4,0.36818]
[1729457900192,1.2018,2716.5,2716.3,0.36819]
[1729457900398,0.36822,2716.2,2716.0,0.36823]
[1729457900591,3.2078,2716.4,2715.9,20.36072]
[1729457900900,0.36824,2716.0,2715.9,20.36072]
[1729457901286,4.04984,2716.0,2715.9,20.36072]
[1729457901490,0.36824,2716.0,2715.9,20.36072]
[1729457903992,3.57604,2716.0,2715.9,20.36072]
[1729457904590,7.25764,2716.0,2715.9,20.36072]
[1729457908994,7.25764,2716.0,2715.9,13.50248]
[1729457909296,7.25764,2716.0,2715.9,9.7144482]
[1729457909501,7.25764,2716.0,2715.9,8.1819682]
[1729457909692,7.25764,2716.0,2715.9,1.5350982]
[1729457909996,7.25764,2716.0,2714.6,0.36843]
[1729457909997,0.3684,2714.9,2714.6,0.36843]
[1729457910200,3.9885,2714.8,2714.7,3.6816]
[1729457910402,4.3793,2714.8,2714.7,3.6816]
[1729457911304,4.3793,2714.8,2714.2,0.36848]
[1729457911305,0.36846,2714.4,2714.2,0.36848]
[1729457911603,3.2078,2714.4,2714.2,1.782]
[1729457911901,3.57626,2714.4,2714.2,1.782]
[1729457912101,0.36847,2714.3,2714.2,1.782]
[1729457913600,3.2078,2714.3,2714.2,1.782]
[1729457913800,3.2078,2714.8,2714.2,1.782]
[1729457914000,0.36839,2714.9,2714.7,1.782]
[1729457914302,3.2078,2714.8,2714.7,1.782]
[1729457914505,3.5762,2714.8,2714.7,1.782]
[1729457914804,3.5762,2714.8,2713.8,0.36854]
[1729457914805,0.36844,2714.6,2713.8,0.36854]
[1729457914998,3.57625,2714.5,2714.3,1.782]
[1729457915300,0.36847,2714.3,2714.2,1.782]
[1729457916796,3.684,2714.3,2713.9,0.36852]
[1729457917000,0.4217,2714.4,2713.9,0.36852]
[1729457917001,3.57628,2714.2,2714.1,1.782]
[1729457917704,6.8918,2714.2,2713.5,0.7898]
[1729457917901,3.2078,2713.9,2713.7,0.36855]
[1729457918101,3.57632,2714.0,2713.9,1.782]
[1729457918405,3.2078,2714.0,2713.9,1.782]
[1729457919106,3.2078,2714.0,2713.9,2.15052]
[1729457921706,0.4217,2714.4,2713.9,2.15052]
[1729457921707,3.2078,2714.3,2714.2,0.36848]
[1729457922008,3.2078,2714.3,2714.2,2.15048]
[1729457922510,3.2078,2714.3,2714.2,1.782]
[1729457922511,3.57627,2714.3,2714.2,1.782]
[1729457922811,3.57627,2714.3,2714.0,0.3685]
[1729457922812,7.26028,2714.3,2714.0,0.3685]
[1729457922998,3.57628,2714.3,2714.1,1.782]
[1729457923202,3.2078,2714.3,2714.2,2.15048]
[1729457926610,3.2078,2714.3,2714.2,1.782]
[1729457926810,3.2078,2714.3,2714.2,2.15048]
[1729457927202,3.57627,2714.3,2714.2,1.782]
[1729457927403,3.97897,2714.3,2714.2,1.782]
[1729457928714,0.36852,2714.0,2713.8,0.36853]
[1729457928909,3.57632,2714.0,2713.8,0.36853]
[1729457929113,3.2078,2714.0,2713.8,1.782]
[1729457929318,0.36852,2713.9,2713.8,1.782]
[1729457929707,3.2078,2714.0,2713.8,2.15054]
[1729457929708,3.57632,2714.0,2713.8,2.15054]
[1729457930203,3.57632,2714.0,2713.8,1.782]
[1729457930204,3.2078,2714.0,2713.8,1.782]
[1729457930403,3.2078,2714.0,2713.9,2.15052]
[1729457931610,2.28585685,2714.0,2713.9,2.15052]
[1729457932615,3.2078,2714.5,2713.9,1.782]
[1729457932806,0.36846,2714.4,2714.2,0.36847]
[1729457933206,3.2078,2714.5,2714.3,1.782]
[1729457933408,3.57625,2714.5,2714.4,1.782]
[1729457934809,3.57625,2714.5,2714.4,2.15046]
[1729457934810,3.2078,2714.5,2714.4,2.15046]
[1729457936018,3.57624,2714.5,2714.4,1.782]
[1729457936513,7.26024,2714.5,2714.3,0.36846]
[1729457936714,0.79067,2714.4,2714.2,0.36848]
[1729457936918,0.3958,2714.3,2714.2,2.15048]
[1729457937115,0.7888,2714.3,2714.2,2.15048]
[1729457937315,1.15727,2714.3,2714.2,1.782]
[1729457938026,1.15727,2714.3,2714.1,0.36849]
[1729457938027,0.36848,2714.2,2714.1,0.36849]
[1729457938215,0.36848,2714.2,2714.1,2.15049]
[1729457938412,0.7888,2714.3,2714.1,2.15049]
[1729457938606,1.15728,2714.3,2714.1,2.15049]
[1729457939218,0.36848,2714.2,2714.1,1.782]
[1729457939422,0.36848,2714.2,2714.0,0.3685]
[1729457939620,3.57628,2714.2,2714.0,2.1505]
[1729457939810,3.57628,2714.2,2714.0,1.782]
[1729457940012,3.57628,2714.2,2714.1,0.3685]
[1729457940417,3.57628,2714.2,2713.7,0.8345]
[1729457940418,6.8918,2714.2,2713.7,0.8345]
[1729457940712,6.8918,2714.2,2713.5,3.2078]
[1729457940713,0.36852,2714.0,2713.8,2.15053]
[1729457940916,0.4177,2713.9,2713.8,2.15053]
[1729457941710,0.36852,2714.0,2713.8,2.15053]
[1729457942020,3.2078,2714.2,2713.9,1.782]
[1729457942021,0.3685,2714.1,2713.9,1.782]
[1729457942324,0.3685,2714.1,2714.0,0.36851]
[1729457942529,3.6848,2714.1,2714.0,0.36851]
[1729457943026,4.05331,2714.1,2713.9,0.36852]
[1729457943225,0.36851,2714.1,2713.9,2.15052]
[1729457944624,0.36851,2714.0,2713.9,2.15052]
[1729457944926,0.3685,2714.1,2713.9,2.15052]
[1729457945121,3.5921,2714.2,2713.9,2.15051]
[1729457945320,0.36851,2714.0,2713.9,1.782]
[1729457945718,0.36851,2714.0,2713.9,2.15052]
[1729457945918,0.36851,2714.0,2713.9,2.26577641]
[1729457946115,0.36851,2714.0,2713.9,2.15052]
[1729457946420,0.36851,2714.0,2713.9,2.26577713]
[1729457946812,0.3685,2714.1,2713.9,2.26577713]
[1729457947013,0.3685,2714.1,2714.0,0.11525713]
[1729457947215,3.6848,2714.0,2713.5,3.2078]
[1729457947417,0.36853,2713.9,2713.7,0.36854]
[1729457947618,0.4056,2713.8,2713.7,0.36854]
[1729457947814,0.4056,2713.8,2713.7,0.48380323]
[1729457948018,0.4056,2713.8,2713.7,0.48380335]
[1729457948823,0.4056,2713.8,2713.7,2.45022223]
[1729457949422,0.4097,2713.9,2713.7,2.08168223]
[1729457949733,0.4097,2713.9,2713.8,2.45021662]
[1729457950422,4.0945,2713.9,2713.8,0.29967662]
[1729457950616,4.0945,2713.9,2713.8,0.48380335]
[1729457950821,4.0945,2713.9,2713.8,0.11526335]
[1729457951033,4.0945,2713.9,2713.8,0.48380335]
[1729457951425,4.0945,2713.9,2713.8,0.11526335]
[1729457951732,0.4097,2713.9,2713.8,0.48380387]
[1729457951934,4.0945,2713.9,2713.8,0.48380387]
[1729457952132,0.4097,2713.9,2713.8,0.48380387]
[1729457952631,0.4097,2713.9,2713.5,3.2078]
[1729457952820,0.4097,2713.9,2713.7,1.782]
[1729457953020,3.2078,2713.8,2713.6,1.782]
[1729457953225,0.3875,2713.7,2713.6,1.782]
[1729457953534,0.3875,2713.7,2713.6,0.11527577]
[1729457953829,5.03372041,2713.7,2713.3,0.94391168]
[1729457954024,0.3831,2713.6,2713.5,1.782]
[1729457954225,0.3831,2713.6,2713.5,0.11527859]
[1729457954428,4.0687,2713.6,2713.1,0.94391168]
[1729457954735,4.0687,2713.6,2713.0,1.80626752]
[1729457954736,4.17394773,2713.3,2713.2,1.89728853]
[1729457954943,4.17394773,2713.3,2713.2,1.782]
[1729457955130,7.85954773,2713.3,2713.0,0.94391168]
[1729457955437,7.85954773,2713.3,2713.0,1.782]
[1729457955438,1.35364773,2713.2,2713.0,1.782]
[1729457955623,0.3875,2713.2,2713.0,1.782]
[1729457955827,1.35364773,2713.2,2713.0,1.782]
[1729457956024,0.3875,2713.2,2713.0,1.782]
[1729457956229,5.03924773,2713.2,2712.8,0.94391168]
[1729457956529,3.2078,2713.0,2712.6,0.94391168]
[1729457956727,0.4036,2712.9,2712.7,1.782]
[1729457956930,4.17394773,2713.0,2712.7,1.782]
[1729457957231,0.96614773,2712.8,2712.7,1.782]
[1729457957422,2.2506216,2712.9,2712.7,1.782]
[1729457957423,1.76754773,2712.9,2712.7,1.782]
[1729457957930,0.96614773,2712.9,2712.8,1.782]
[1729457958124,3.2078,2713.0,2712.8,1.782]
[1729457958325,3.2078,2713.0,2712.9,1.782]
[1729457960524,0.4007,2713.7,2712.9,1.782]
[1729457960822,0.4007,2713.7,2713.0,0.88219788]
[1729457960823,3.2078,2713.3,2713.0,0.88219788]
[1729457961031,3.2078,2713.3,2713.0,0.4211]
[1729457961332,3.2078,2713.3,2713.2,1.782]
[1729457962539,3.2078,2713.3,2713.2,1.83249559]
[1729457962733,3.2078,2713.3,2713.2,2.99882481]
[1729457963543,4.5725693,2713.7,2713.2,2.99882481]
[1729457963743,4.5725693,2713.7,2713.5,1.782]
[1729457964537,4.5725693,2713.7,2713.6,0.05049559]
[1729457964737,8.2573693,2713.7,2713.6,0.05049559]
[1729457964936,8.2573693,2713.7,2713.6,1.21682481]
[1729457965142,7.2933,2713.7,2713.6,1.21682481]
[1729457965342,7.2933,2713.7,2713.6,0.58342481]
[1729457965545,8.73940395,2713.7,2713.6,0.58342481]
[1729457966239,7.2933,2713.7,2713.6,0.58342481]
[1729457966640,7.2933,2713.7,2712.6,4.16553384]
[1729457966941,4.17172327,2713.4,2713.0,1.782]
[1729457967140,4.17172327,2713.4,2712.6,3.6084]
[1729457967141,0.96392327,2713.3,2712.9,1.782]
[1729457967448,0.3926,2713.2,2712.9,1.782]
[1729457967748,1.35652327,2713.2,2712.9,1.782]
[1729457968238,0.3926,2713.2,2712.9,1.782]
[1729457969839,0.3926,2713.2,2713.1,1.782]
[1729457970248,4.57602327,2713.4,2713.1,1.782]
[1729457970456,4.57602327,2713.4,2713.3,1.782]
[1729457972248,1.36822327,2713.4,2713.3,1.782]
[1729457973150,0.96392327,2713.4,2713.3,1.782]
[1729457973341,0.96392327,2713.5,2713.3,1.782]
[1729457973643,0.96392327,2713.5,2712.6,3.6084]
[1729457973843,0.96392327,2713.5,2713.4,1.782]
[1729457976246,3.6176,2713.7,2713.4,1.782]
[1729457976247,4.58152327,2713.7,2713.4,1.782]
[1729457976440,3.6176,2713.7,2713.6,1.782]
[1729457977538,0.4098,2713.7,2713.6,1.782]
[1729457978248,4.0946,2713.7,2713.1,0.3966]
[1729457978444,0.4157,2713.6,2713.3,1.782]
[1729457978647,3.2078,2713.4,2713.2,1.782]
[1729457980449,3.2078,2713.4,2712.9,3.2078]
[1729457980648,3.2078,2713.4,2713.1,1.782]
[1729457981549,4.17172327,2713.4,2713.1,1.782]
[1729457981938,4.17172327,2713.4,2712.9,3.2078]
[1729457982149,0.96392327,2713.3,2713.0,1.782]
[1729457982545,0.3928,2713.2,2713.0,1.782]
[1729457982745,0.3928,2713.2,2713.1,1.782]
[1729457983649,1.35672327,2713.2,2713.1,1.782]
[1729457983851,0.3928,2713.2,2713.1,1.782]
[1729457989247,1.35672327,2713.2,2713.1,1.782]
[1729457990258,0.96392327,2713.2,2713.1,1.782]
[1729457993453,0.96392327,2713.3,2713.1,1.782]
[1729457993645,1.36532327,2713.4,2713.2,1.782]
[1729457993846,1.36532327,2713.4,2713.3,1.782]
[1729457994755,0.4014,2713.4,2713.3,1.782]
[1729457994958,1.36721484,2713.4,2713.3,1.782]
[1729457995259,0.4014,2713.4,2713.3,1.782]
[1729457995859,1.84728491,2713.4,2713.3,1.782]
[1729457996160,0.4014,2713.4,2713.3,1.782]
[1729457996656,1.84728491,2713.4,2713.3,1.782]
[1729458000659,1.44588491,2713.4,2713.3,1.782]
[1729458000856,0.96641184,2713.4,2713.3,2.24310448]
[1729458001062,1.44588491,2713.5,2713.3,2.24310448]
[1729458001063,0.96641184,2713.5,2713.3,3.31611081]
[1729458001363,0.96641184,2713.5,2713.4,1.782]
[1729458001659,1.44588491,2713.6,2713.4,1.782]
[1729458001861,1.44588491,2713.6,2713.2,1.37733384]
[1729458001862,1.44588491,2713.6,2713.5,1.782]
[1729458003958,5.13593861,2713.7,2713.5,1.782]
[1729458004161,1.92813861,2713.6,2713.2,0.95773384]
[1729458004463,1.92813861,2713.6,2713.4,1.782]
[1729458004859,5.61373861,2713.5,2713.0,4.16553384]
[1729458005155,1.92813861,2713.3,2713.2,1.782]
[1729458005358,1.92813861,2713.3,2713.1,1.782]
[1729458005661,1.1878,2713.2,2713.1,1.782]
[1729458006158,1.44996542,2713.2,2713.1,2.24312562]
[1729458006565,2.31213861,2713.4,2713.1,2.24312562]
[1729458006566,1.44996542,2713.3,2713.1,2.24312562]
[1729458006772,2.31213861,2713.4,2713.3,1.782]
[1729458006773,0.96659496,2713.4,2713.3,1.782]
[1729458007065,0.96659496,2713.5,2713.3,3.43349977]
[1729458007250,0.96659496,2713.5,2713.4,3.43349075]
[1729458007454,4.17439496,2713.7,2713.4,5.71537923]
[1729458007657,4.17439496,2713.7,2713.6,1.782]
[1729458007855,4.17439496,2713.7,2713.6,2.24308942]
[1729458008057,4.17439496,2713.7,2713.6,2.65418942]
[1729458008858,3.2078,2713.7,2713.6,4.24273866]
[1729458009262,3.2078,2713.7,2713.6,3.28320846]
[1729458009455,3.2078,2713.7,2713.6,3.2832087]
[1729458009657,3.2078,2713.7,2713.6,4.2427389]
[1729458010369,3.2078,2713.7,2713.6,3.2832087]
[1729458011358,3.2078,2713.7,2713.6,3.05268942]
[1729458011664,3.2078,2713.7,2713.6,3.16794623]
[1729458012169,3.2078,2713.7,2713.6,3.05268942]
[1729458012469,0.96659496,2713.9,2713.6,3.05268942]
[1729458012767,4.17439496,2714.0,2713.8,1.782]
[1729458012962,4.17439496,2714.0,2713.9,1.782]
[1729458013564,3.2078,2714.0,2713.9,1.782]
[1729458013860,0.96659496,2714.2,2713.9,1.782]
[1729458014068,0.96659496,2714.2,2714.1,1.782]
[1729458014267,0.96659496,2714.3,2714.1,1.782]
[1729458014467,0.96659496,2714.3,2714.2,1.782]
[1729458016259,0.8249,2714.4,2714.2,1.782]
[1729458016461,3.2078,2714.5,2714.3,1.782]
[1729458016666,3.2078,2714.5,2714.4,1.782]
[1729458019381,0.4074,2715.0,2714.4,4.472]
[1729458019584,0.4074,2715.0,2714.5,4.0097]
[1729458019767,3.6169,2715.2,2714.6,0.3951]
[1729458019968,1.79999496,2715.4,2714.6,0.3951]
[1729458020169,1.79999496,2715.4,2714.8,3.2078]
[1729458020170,0.4035,2715.3,2714.8,3.2078]
[1729458021667,3.6113,2715.3,2714.5,0.8019]
[1729458022077,3.6113,2715.3,2714.5,0.8243]
[1729458022376,3.6113,2715.3,2714.5,0.0224]
[1729458022687,4.57789496,2715.3,2714.5,0.0224]
[1729458022980,5.36589496,2715.3,2714.5,0.0224]
[1729458024882,4.3993,2715.3,2714.5,0.0224]
[1729458032581,3.2078,2715.0,2714.5,0.0224]
[1729458032788,1.1877,2714.9,2714.4,3.2078]
[1729458037089,0.7935,2714.9,2714.7,3.2078]
[1729458037487,0.3891,2715.3,2714.8,3.6832]
[1729458037689,0.7857,2715.2,2714.7,3.2078]
[1729458038282,0.7857,2715.2,2714.3,2.0265]
[1729458038283,0.7857,2715.2,2715.0,3.2078]
[1729458039092,0.7857,2715.2,2714.7,3.2078]
[1729458039398,0.7857,2715.2,2715.0,3.2078]
[1729458041102,0.788,2715.8,2715.0,6.891]
[1729458041287,1.1873,2715.7,2715.0,3.2078]
[1729458042592,0.798,2715.7,2715.3,3.2078]
[1729458042793,0.798,2715.7,2715.4,0.3937]
[1729458043104,0.3916,2715.7,2715.4,4.8745]
[1729458043304,0.3916,2715.7,2715.5,3.6824]
[1729458043597,0.3916,2715.7,2715.6,3.6824]
[1729458043898,0.3916,2715.7,2715.5,3.6824]
[1729458044099,0.3916,2715.7,2715.6,3.6824]
[1729458044299,0.3916,2715.7,2715.5,3.6824]
[1729458044694,0.3916,2715.7,2715.4,1.1921]
[1729458044695,0.3916,2715.7,2715.6,3.6824]
[1729458045003,0.3916,2715.7,2715.5,3.6824]
[1729458045394,0.3916,2715.7,2715.6,3.6824]
[1729458045603,0.3916,2715.7,2715.5,3.6824]
[1729458046004,0.3916,2715.7,2715.6,3.6824]
[1729458046308,0.3916,2715.7,2715.5,3.6824]
[1729458046804,0.3916,2715.7,2715.6,3.6824]
[1729458047000,0.3916,2715.7,2715.5,3.6824]
[1729458047396,0.3916,2715.7,2715.4,1.1921]
[1729458047397,0.3916,2715.7,2715.6,3.6824]
[1729458047592,0.3916,2715.7,2715.4,1.1921]
[1729458047593,0.3916,2715.7,2715.4,0.79]
[1729458047802,0.3916,2715.7,2715.1,0.788]
[1729458047998,0.3883,2715.6,2715.1,0.788]
[1729458048399,0.3883,2715.6,2715.3,3.2078]
[1729458051208,0.96659496,2716.4,2715.4,3.6824]
[1729458051410,1.2015,2716.4,2715.7,3.2078]
[1729458052404,1.2015,2716.4,2716.0,3.2078]
[1729458054212,4.17439496,2717.1,2716.0,3.9958]
[1729458054412,0.3813,2716.3,2716.0,4.0194]
[1729458054907,0.7958,2717.0,2716.0,7.701]
[1729458055112,0.3813,2716.9,2716.3,3.2078]
[1729458058606,0.96659496,2717.5,2716.7,3.2078]
[1729458058808,0.96659496,2717.5,2716.1,0.785]
[1729458058809,0.3843,2717.3,2717.0,3.2078]
[1729458059704,0.413,2717.4,2717.0,3.5905]
[1729458059905,0.413,2717.4,2716.9,0.793]
[1729458061307,4.17439496,2718.0,2716.9,0.793]
[1729458061612,0.3999,2717.9,2717.2,3.2078]
[1729458062208,4.17439496,2718.4,2717.3,3.2078]
[1729458062516,4.17439496,2718.4,2717.0,1.1819]
[1729458062517,3.2078,2718.4,2717.6,3.2078]
[1729458062710,0.3813,2718.3,2717.6,0.793]
[1729458062909,0.7856,2718.3,2717.6,3.2078]
[1729458063105,0.7856,2718.3,2717.6,4.0008]
[1729458064108,3.2078,2718.4,2717.7,0.7913]
[1729458064317,0.3932,2718.3,2717.7,0.7913]
[1729458064812,0.3932,2718.3,2717.8,0.793]
[1729458066606,0.3932,2718.3,2717.6,3.2078]
[1729458066813,0.3929,2718.2,2717.3,3.2078]
[1729458067013,0.3929,2718.2,2717.4,0.793]
[1729458067604,0.3929,2718.2,2717.6,3.2078]
[1729458068917,0.3929,2718.2,2717.6,4.0008]
[1729458070015,3.2078,2719.0,2718.0,3.2078]
[1729458070218,3.2078,2719.0,2718.2,3.2078]
[1729458070415,3.2078,2719.0,2718.5,3.2078]
[1729458070722,3.2078,2719.0,2718.5,4.0008]
[1729458071420,3.2078,2719.0,2718.5,3.2078]
[1729458071718,3.2078,2719.0,2718.5,4.0008]
[1729458072519,0.8167,2719.6,2718.5,4.0008]
[1729458072520,3.2078,2719.8,2718.8,3.2078]
[1729458072711,0.3876,2719.5,2718.9,1.1881]
[1729458072911,0.3876,2719.5,2719.0,0.793]
[1729458073112,0.3876,2719.5,2718.9,0.3951]
[1729458073323,0.3876,2719.5,2719.0,0.793]
[1729458074821,0.3876,2719.5,2719.1,3.2078]
[1729458076324,0.3876,2719.5,2719.2,3.2078]
[1729458076514,0.3876,2719.5,2719.0,0.793]
[1729458076912,0.3876,2719.5,2719.1,3.2078]
[1729458077319,0.3876,2719.5,2719.1,4.0008]
[1729458079018,0.3947,2719.8,2719.1,4.0008]
[1729458079220,0.8164,2719.8,2719.1,0.793]
[1729458079924,0.8164,2719.8,2719.0,0.793]
[1729458080226,0.8164,2719.8,2719.1,0.0228]
[1729458080524,0.8164,2719.8,2718.9,0.7782]
[1729458080725,0.8164,2719.8,2719.0,0.793]
[1729458081025,0.8164,2719.8,2718.9,0.7782]
[1729458081214,0.8164,2719.8,2719.0,0.8158]
[1729458081818,0.8164,2719.8,2719.1,3.2078]
[1729458084131,0.8164,2719.8,2719.1,4.0008]
[1729458086320,0.8164,2719.8,2719.1,0.793]
[1729458086536,0.8164,2719.8,2719.1,4.4054]
[1729458088032,3.2078,2720.2,2719.7,3.2078]
[1729458088225,3.2078,2720.2,2719.8,0.7836]
[1729458088424,3.2078,2720.2,2719.8,0.3971]
[1729458088627,0.4188,2720.1,2719.8,0.3971]
[1729458089632,0.4188,2720.1,2719.7,3.2078]
[1729458089834,3.6146,2720.7,2719.7,3.2078]
[1729458090142,0.417,2720.6,2719.7,7.3015]
[1729458090430,0.417,2720.6,2719.8,0.81]
[1729458090431,3.2078,2720.4,2719.8,0.81]
[1729458090733,3.2078,2720.4,2719.7,4.4347]